bitfinex-derivatives/quotes_BTCF0:USTF0_20250416
["timestamp","ask_amount","ask_price","bid_price","bid_amount"]
[1744815240867,0.0590011,84751.0,84750.0,0.005]
[1744815241064,0.118016,84741.0,84736.0,0.0590111]
[1744815241265,0.0590062,84744.0,84725.0,0.0463]
[1744815241472,0.1180355,84727.0,84726.0,0.1621369]
[1744815241669,0.1180355,84727.0,84726.0,0.1941]
[1744815241970,0.1180355,84727.0,84726.0,0.3121369]
[1744815242363,0.3608,84746.0,84737.0,0.1180202]
[1744815242558,0.00886021,84755.0,84734.0,0.1770383]
[1744815242559,0.00028495,84735.0,84734.0,0.1770383]
[1744815242756,0.11830935,84735.0,84734.0,0.3370383]
[1744815242955,0.11820134,84735.0,84734.0,0.3370383]
[1744815243169,0.11828134,84735.0,84734.0,0.3370383]
[1744815244365,0.11828134,84735.0,84734.0,0.2190125]
[1744815244565,0.11828134,84735.0,84734.0,0.166]
[1744815244770,0.11828134,84735.0,84734.0,0.1270258]
[1744815244970,0.11828134,84735.0,84734.0,0.2770258]
[1744815245157,0.11828134,84735.0,84734.0,0.1270258]
[1744815245357,0.12730655,84735.0,84734.0,0.1270258]
[1744815245662,0.12730655,84735.0,84734.0,0.2870258]
[1744815246266,0.12730655,84735.0,84734.0,0.3319258]
[1744815246772,0.11828134,84735.0,84734.0,0.0539]
[1744815246967,0.11828134,84735.0,84734.0,0.3419258]
[1744815247672,0.00025694,84735.0,84734.0,0.3419258]
[1744815247858,0.00010801,84741.0,84740.0,0.1180174]
[1744815248059,0.1770011,84754.0,84753.0,0.1179979]
[1744815248370,0.118016,84741.0,84739.0,0.0455]
[1744815248562,0.118016,84741.0,84740.0,0.1180174]
[1744815248759,0.118016,84741.0,84740.0,0.6388174]
[1744815248958,0.118016,84741.0,84740.0,0.6843174]
[1744815249366,0.118096,84741.0,84740.0,0.6843174]
[1744815249963,0.118096,84741.0,84740.0,0.6863174]
[1744815251069,0.206196,84741.0,84740.0,0.6863174]
[1744815251371,0.206196,84741.0,84740.0,0.166]
[1744815251771,0.206196,84741.0,84740.0,0.006]
[1744815253462,0.206196,84741.0,84740.0,0.1240174]
[1744815253668,0.04288,84741.0,84740.0,0.5948174]
[1744815253864,8e-05,84741.0,84740.0,0.5948174]
[1744815254066,0.118011,84745.0,84744.0,0.1180118]
[1744815254372,0.118011,84745.0,84744.0,0.2980118]
[1744815254685,0.1770129,84747.0,84740.0,0.1240174]
[1744815254686,0.118096,84741.0,84740.0,0.1240174]
[1744815254873,0.118016,84741.0,84740.0,0.166]
[1744815255065,0.118096,84741.0,84740.0,0.156]
[1744815255266,0.118096,84741.0,84740.0,0.2900174]
[1744815255466,0.118096,84741.0,84740.0,0.002]
[1744815255968,0.118096,84741.0,84740.0,0.006]
[1744815256171,0.118096,84741.0,84740.0,0.004]
[1744815256571,0.1180272,84733.0,84732.0,0.00017694]
[1744815256766,0.1180272,84733.0,84707.0,0.46244]
[1744815256767,0.1180453,84720.0,84714.0,0.0435]
[1744815256968,0.1180453,84720.0,84719.0,1e-08]
[1744815257671,0.2082453,84720.0,84719.0,1e-08]
[1744815257874,0.1180718,84701.0,84700.0,0.1]
[1744815258074,0.1180718,84701.0,84700.0,0.12]
[1744815258977,0.1627718,84701.0,84700.0,0.12]
[1744815259474,0.5235718,84701.0,84700.0,0.1]
[1744815259867,0.5235718,84701.0,84700.0,0.107]
[1744815259868,0.5245718,84701.0,84700.0,0.107]
[1744815260670,0.1637718,84701.0,84700.0,0.107]
[1744815261070,0.1637718,84701.0,84700.0,0.111]
[1744815261071,0.1638518,84701.0,84700.0,0.111]
[1744815261284,0.2084518,84701.0,84700.0,0.111]
[1744815263185,0.21731712,84701.0,84700.0,0.111]
[1744815263478,0.21723712,84701.0,84700.0,0.111]
[1744815263672,0.21731712,84701.0,84700.0,0.111]
[1744815264976,0.21731712,84701.0,84700.0,0.2290731]
[1744815265580,0.21731712,84701.0,84700.0,0.111]
[1744815265978,0.57811712,84701.0,84700.0,0.111]
[1744815266484,0.21731712,84701.0,84700.0,0.2290731]
[1744815266679,0.21731712,84701.0,84700.0,0.111]
[1744815266986,0.21723712,84701.0,84700.0,0.111]
[1744815267382,0.21731712,84701.0,84700.0,0.111]
[1744815268282,0.1181038,84678.0,84677.0,0.4789034]
[1744815268476,0.1181038,84678.0,84677.0,0.5542]
[1744815269185,0.1181038,84678.0,84677.0,0.1934]
[1744815269381,0.1181038,84678.0,84677.0,0.0734]
[1744815269575,0.1181038,84678.0,84677.0,0.0434]
[1744815269777,0.1181038,84678.0,84677.0,0.0504]
[1744815269778,0.1191038,84678.0,84677.0,0.0504]
[1744815269979,0.1191038,84678.0,84677.0,0.1504]
[1744815270384,0.1191838,84678.0,84677.0,0.1504]
[1744815270682,0.00017705,84686.0,84677.0,0.4004]
[1744815270887,0.11826975,84686.0,84685.0,0.3608]
[1744815271084,0.11826975,84686.0,84685.0,0.5108]
[1744815271285,0.11834975,84686.0,84685.0,0.5108]
[1744815272785,0.11834975,84686.0,84685.0,0.152]
[1744815273086,0.47914975,84686.0,84685.0,0.152]
[1744815273386,0.48014975,84686.0,84685.0,0.152]
[1744815273581,0.52234975,84686.0,84685.0,0.152]
[1744815273884,0.56444975,84686.0,84685.0,0.152]
[1744815274079,0.56444975,84686.0,84685.0,0.157]
[1744815274886,0.56444975,84686.0,84677.0,0.0434]
[1744815274887,0.1181038,84678.0,84677.0,0.0434]
[1744815275081,0.0590552,84674.0,84655.0,0.0590678]
[1744815275284,0.1181178,84668.0,84663.0,0.0423]
[1744815275483,0.1181373,84654.0,84653.0,0.3608]
[1744815275785,0.00017716,84662.0,84654.0,0.0423]
[1744815276089,0.1181359,84655.0,84654.0,0.3204367]
[1744815276275,0.1181359,84655.0,84654.0,0.3613367]
[1744815276478,0.1772005,84657.0,84656.0,0.1181345]
[1744815276676,0.1772005,84657.0,84656.0,0.18]
[1744815276886,0.5380005,84657.0,84656.0,0.18]
[1744815277087,0.1772005,84657.0,84656.0,0.18]
[1744815279486,0.1772005,84657.0,84656.0,0.185]
[1744815279886,0.1782005,84657.0,84656.0,0.194]
[1744815280484,0.1782005,84657.0,84656.0,0.3121345]
[1744815280880,0.1782805,84657.0,84656.0,0.194]
[1744815281085,0.1782805,84657.0,84656.0,0.3121345]
[1744815281282,0.0601467,84657.0,84656.0,0.3121345]
[1744815281685,0.1192131,84657.0,84656.0,0.3121345]
[1744815281885,0.1191331,84657.0,84656.0,0.3121345]
[1744815282085,0.1192131,84657.0,84656.0,0.3121345]
[1744815286780,0.1192131,84657.0,84656.0,0.3921345]
[1744815288896,0.1192131,84657.0,84656.0,0.274]
[1744815289591,0.2011131,84657.0,84656.0,0.274]
[1744815289992,0.2011131,84657.0,84656.0,0.2327]
[1744815290198,0.2011131,84657.0,84656.0,0.194]
[1744815291083,0.1192131,84657.0,84656.0,0.194]
[1744815291289,0.1192131,84657.0,84656.0,0.3121345]
[1744815291492,0.1191331,84657.0,84656.0,0.3111345]
[1744815291692,0.1192131,84657.0,84656.0,0.3864345]
[1744815291892,0.1192131,84657.0,84656.0,0.3106]
[1744815292396,0.1592131,84657.0,84656.0,0.2723]
[1744815292583,0.1980131,84657.0,84656.0,0.2314]
[1744815293288,0.1980131,84657.0,84656.0,0.192]
[1744815294598,0.20671781,84657.0,84656.0,0.192]
[1744815296898,0.16791781,84657.0,84656.0,0.192]
[1744815297394,0.20841781,84657.0,84656.0,0.192]
[1744815297699,0.20841781,84657.0,84656.0,0.042]
[1744815300186,0.16791781,84657.0,84656.0,0.042]
[1744815300397,0.16791781,84657.0,84656.0,0.1301345]
[1744815300587,0.1592131,84657.0,84656.0,0.1301345]
[1744815300796,0.1192131,84657.0,84656.0,0.3101345]
[1744815300991,0.1191331,84657.0,84656.0,0.3905345]
[1744815301201,0.00108,84657.0,84656.0,0.3905345]
[1744815301396,0.11928613,84661.0,84660.0,0.1181289]
[1744815301598,0.11928613,84661.0,84660.0,0.6489289]
[1744815301896,0.11928613,84661.0,84660.0,1.0203289]
[1744815302095,0.23741363,84661.0,84660.0,0.6522]
[1744815302498,0.23741363,84661.0,84660.0,0.2914]
[1744815302691,0.23741363,84661.0,84660.0,0.2954]
[1744815302887,0.27931363,84661.0,84660.0,0.2954]
[1744815303393,0.27931363,84661.0,84660.0,0.2571]
[1744815303690,0.27931363,84661.0,84660.0,0.2641]
[1744815303691,0.28031363,84661.0,84660.0,0.2641]
[1744815303895,0.31891363,84661.0,84660.0,0.3822289]
[1744815304099,0.1996275,84661.0,84660.0,0.2641]
[1744815304293,0.1996275,84661.0,84660.0,0.181]
[1744815305001,0.1610275,84661.0,84660.0,0.181]
[1744815305390,0.2024275,84661.0,84660.0,0.181]
[1744815305802,0.2024275,84661.0,84660.0,0.2991289]
[1744815305994,0.2024275,84661.0,84660.0,0.3800289]
[1744815305995,0.1191275,84661.0,84660.0,0.3800289]
[1744815307001,0.001,84661.0,84660.0,0.3800289]
[1744815307212,0.00108,84661.0,84660.0,0.7408289]
[1744815307403,0.001,84661.0,84660.0,0.7408289]
[1744815307704,0.00108,84661.0,84660.0,0.7408289]
[1744815308000,0.00108,84661.0,84660.0,0.2619]
[1744815308001,0.1192075,84661.0,84660.0,0.2619]
[1744815308303,0.1192075,84661.0,84660.0,0.3800289]
[1744815308990,0.1191275,84661.0,84660.0,0.3800289]
[1744815309189,0.1192075,84661.0,84660.0,0.3800289]
[1744815310593,0.00108,84661.0,84660.0,0.7408289]
[1744815310798,0.14910766,84671.0,84666.0,0.0590598]
[1744815310992,0.14910766,84671.0,84670.0,0.118115]
[1744815311201,0.14910766,84671.0,84670.0,0.268115]
[1744815311501,0.14910766,84671.0,84670.0,0.348215]
[1744815311895,0.17910636,84679.0,84678.0,0.1181038]
[1744815312099,0.32683083,84695.0,84694.0,0.1180815]
[1744815312405,0.32683083,84695.0,84694.0,0.2980815]
[1744815312591,0.32683083,84695.0,84694.0,0.0801]
[1744815312797,0.36513083,84695.0,84694.0,0.1981815]
[1744815313098,0.36521083,84695.0,84694.0,0.0801]
[1744815313300,0.36921083,84695.0,84694.0,0.1981815]
[1744815313505,0.21283073,84695.0,84694.0,0.0383]
[1744815313696,0.21283073,84695.0,84686.0,0.00017716]
[1744815313697,0.1180913,84687.0,84686.0,0.00017716]
[1744815314806,0.1980913,84687.0,84686.0,0.00017716]
[1744815315107,0.0590423,84692.0,84691.0,0.1771271]
[1744815315498,0.0974423,84692.0,84691.0,0.0590428]
[1744815315701,0.1391223,84692.0,84691.0,0.0590428]
[1744815315901,0.1391223,84692.0,84691.0,0.0994428]
[1744815316103,0.1391223,84692.0,84691.0,0.0590428]
[1744815316699,0.00308,84692.0,84691.0,0.0994428]
[1744815317007,0.005,84692.0,84691.0,0.3119428]
[1744815317209,0.00508,84692.0,84691.0,0.3508428]
[1744815317402,0.1231643,84692.0,84691.0,0.3508428]
[1744815317797,0.1231643,84692.0,84691.0,0.1808428]
[1744815318003,0.1180913,84687.0,84686.0,0.00017716]
[1744815318206,0.1180913,84687.0,84686.0,0.16017716]
[1744815318406,0.2004913,84687.0,84686.0,0.16017716]
[1744815319405,0.2024913,84687.0,84686.0,0.16017716]
[1744815319598,0.2024913,84687.0,84686.0,0.00017716]
[1744815319799,0.2024913,84687.0,84686.0,0.11826986]
[1744815320806,0.2024913,84687.0,84686.0,0.19926986]
[1744815321007,0.1610913,84687.0,84686.0,0.34926986]
[1744815321199,0.1610913,84687.0,84686.0,0.19926986]
[1744815322007,0.1610913,84687.0,84686.0,0.35926986]
[1744815322195,0.1200913,84687.0,84686.0,0.35926986]
[1744815324412,0.1590913,84687.0,84686.0,0.35926986]
[1744815324616,0.1981913,84687.0,84686.0,0.19926986]
[1744815324798,0.1981913,84687.0,84686.0,0.11826986]
[1744815325006,0.2369913,84687.0,84686.0,0.11826986]
[1744815326113,0.2369913,84687.0,84686.0,0.04287716]
[1744815326813,0.2369913,84687.0,84686.0,0.16096986]
[1744815327509,0.2369913,84687.0,84686.0,0.04287716]
[1744815330813,0.2369913,84687.0,84686.0,0.23427716]
[1744815331013,0.2369913,84687.0,84686.0,0.08427716]
[1744815331513,0.5977913,84687.0,84686.0,6e-08]
[1744815335217,0.5978713,84687.0,84686.0,6e-08]
[1744815337415,0.002,84687.0,84686.0,0.26809276]
[1744815337621,0.1201713,84687.0,84686.0,0.38969276]
[1744815337918,0.1200913,84687.0,84686.0,0.27160006]
[1744815338110,0.1201713,84687.0,84686.0,0.27160006]
[1744815339124,0.00208,84687.0,84686.0,0.38969276]
[1744815339523,0.1200913,84687.0,84686.0,0.38969276]
[1744815339724,0.1201713,84687.0,84686.0,0.38969276]
[1744815340416,0.1201713,84687.0,84686.0,0.27160006]
[1744815340612,0.1201713,84687.0,84686.0,0.23080006]
[1744815340819,0.1595713,84687.0,84686.0,0.23080006]
[1744815341421,0.1201713,84687.0,84686.0,0.23080006]
[1744815341627,0.1201713,84687.0,84686.0,0.34889276]
[1744815341924,0.1200913,84687.0,84686.0,0.34889276]
[1744815342327,0.1201713,84687.0,84686.0,0.34889276]
[1744815342717,0.1201713,84687.0,84686.0,0.23080006]
[1744815343422,0.1201713,84687.0,84686.0,0.34889276]
[1744815346228,0.00208,84687.0,84686.0,0.34889276]
[1744815346413,0.002,84687.0,84686.0,0.34889276]
[1744815346614,0.0590386,84698.0,84686.0,0.34889276]
[1744815346615,0.15032402,84693.0,84692.0,0.1180843]
[1744815346819,0.15032402,84693.0,84692.0,0.4108843]
[1744815347525,0.18000657,84699.0,84692.0,0.3518417]
[1744815347823,0.00014581,84711.0,84699.0,0.0590368]
[1744815348025,0.00014581,84711.0,84710.0,0.4788592]
[1744815348225,0.20875073,84713.0,84712.0,0.1180564]
[1744815348428,0.20875073,84713.0,84712.0,0.2680564]
[1744815348617,0.23730308,84719.0,84718.0,0.1180481]
[1744815348818,0.32793089,84737.0,84724.0,0.1180397]
[1744815349022,0.00017706,84727.0,84724.0,0.2680397]
[1744815349615,0.26838709,84725.0,84724.0,0.4022397]
[1744815349829,0.26830709,84725.0,84724.0,0.4022397]
[1744815350018,0.1181183,84725.0,84724.0,0.4612589]
[1744815350223,8e-05,84725.0,84724.0,0.5202781]
[1744815350530,0.002,84725.0,84724.0,0.5202781]
[1744815350730,0.00208,84725.0,84724.0,0.5202781]
[1744815351122,0.00408,84725.0,84724.0,0.5202781]
[1744815351733,0.00408,84725.0,84724.0,0.52926111]
[1744815352125,0.1221183,84725.0,84724.0,0.0874]
[1744815352430,0.1221183,84725.0,84710.0,0.09333706]
[1744815352431,0.1180578,84712.0,84711.0,0.17708]
[1744815352730,0.1180578,84712.0,84711.0,0.3067288]
[1744815353721,0.1180578,84712.0,84711.0,0.2477]
[1744815353929,0.1631578,84712.0,84711.0,0.2507]
[1744815354134,0.1631578,84712.0,84711.0,0.173]
[1744815354336,0.2078578,84712.0,84711.0,0.003]
[1744815354525,0.2588578,84712.0,84711.0,0.003]
[1744815355520,0.27060975,84712.0,84711.0,0.003]
[1744815356521,0.1180578,84711.0,84710.0,6e-08]
[1744815356725,0.2096578,84711.0,84710.0,6e-08]
[1744815356935,0.4596578,84711.0,84710.0,6e-08]
[1744815357730,0.5557778,84711.0,84710.0,6e-08]
[1744815357934,0.9681778,84711.0,84710.0,6e-08]
[1744815358730,0.7181778,84711.0,84710.0,6e-08]
[1744815359028,0.3058578,84711.0,84710.0,6e-08]
[1744815359425,0.3087778,84711.0,84710.0,0.00100006]
[1744815359625,0.3088578,84711.0,84710.0,0.00100006]
[1744815359821,0.3138578,84711.0,84710.0,0.00100006]
[1744815360627,0.3088578,84711.0,84710.0,0.00100006]
[1744815360831,0.3108578,84711.0,84710.0,0.00100006]
[1744815361440,0.3068578,84711.0,84710.0,0.00100006]
[1744815361636,0.3118578,84711.0,84710.0,0.00100006]
[1744815361833,0.2187378,84711.0,84710.0,0.00100006]
[1744815362140,0.1709378,84711.0,84710.0,0.00100006]
[1744815362339,0.2230378,84711.0,84710.0,0.00100006]
[1744815362537,0.2229578,84711.0,84710.0,0.00100006]
[1744815362838,0.2239578,84711.0,84710.0,0.00100006]
[1744815363233,0.2240378,84711.0,84710.0,0.00100006]
[1744815363831,0.2190378,84711.0,84710.0,6e-08]
[1744815364031,0.2210378,84711.0,84710.0,6e-08]
[1744815364234,0.2200378,84711.0,84710.0,6e-08]
[1744815364538,0.5798378,84711.0,84710.0,6e-08]
[1744815366139,0.5768378,84711.0,84710.0,6e-08]
[1744815366434,0.5798378,84711.0,84710.0,6e-08]
[1744815366636,0.1180815,84694.0,84693.0,0.00507713]
[1744815366840,0.4788815,84694.0,84693.0,0.00507713]
[1744815367435,0.48757634,84694.0,84693.0,0.00507713]
[1744815367835,0.48857634,84694.0,84693.0,0.00507713]
[1744815368138,0.49057634,84694.0,84693.0,0.00507713]
[1744815368439,0.1211615,84694.0,84693.0,0.27316003]
[1744815369134,0.1211615,84694.0,84693.0,0.00507713]
[1744815369533,0.1210815,84694.0,84693.0,0.00507713]
[1744815369742,0.1211615,84694.0,84693.0,0.00507713]
[1744815369932,0.4819615,84694.0,84693.0,0.00507713]
[1744815370733,0.5256615,84694.0,84693.0,0.00507713]
[1744815373936,0.5769615,84694.0,84693.0,0.00507713]
[1744815377939,0.5768815,84694.0,84693.0,0.00507713]
[1744815378135,0.5769615,84694.0,84693.0,0.00507713]
[1744815380842,0.5256615,84694.0,84693.0,0.00507713]
[1744815381046,0.5255815,84694.0,84693.0,0.00507713]
[1744815381346,0.5746615,84694.0,84693.0,0.00507713]
[1744815381553,0.5746615,84694.0,84667.0,0.00507869]
[1744815381554,0.1181122,84672.0,84667.0,0.00507869]
[1744815381849,0.5904238,84692.0,84667.0,0.00507869]
[1744815381850,0.1181178,84668.0,84667.0,0.00507869]
[1744815382046,0.1181178,84668.0,84667.0,0.16507869]
[1744815382952,0.1181178,84668.0,84667.0,0.26497869]
[1744815383144,0.22972766,84668.0,84667.0,0.26497869]
[1744815383546,0.23072766,84668.0,84667.0,0.17307869]
[1744815383849,0.1181373,84654.0,84653.0,0.1029]
[1744815384147,0.4789373,84654.0,84653.0,0.1029]
[1744815384742,0.5806373,84654.0,84653.0,0.0514]
[1744815384941,0.1181471,84647.0,84646.0,0.0515]
[1744815385142,0.4789471,84647.0,84646.0,0.0515]
[1744815385544,0.4789471,84647.0,84641.0,0.18301101]
[1744815385545,0.1181541,84642.0,84641.0,0.18301101]
[1744815385747,0.4789541,84642.0,84641.0,0.18301101]
[1744815386049,0.4789541,84642.0,84641.0,5e-08]
[1744815386642,0.48766931,84642.0,84641.0,5e-08]
[1744815386846,0.1181806,84623.0,84622.0,0.17793076]
[1744815387043,0.4789806,84623.0,84622.0,0.17793076]
[1744815387751,0.5797806,84623.0,84622.0,0.17793076]
[1744815388354,0.1181904,84616.0,84609.0,0.0972]
[1744815388553,0.4789904,84616.0,84609.0,0.0972]
[1744815389250,0.5797904,84616.0,84609.0,0.0972]
[1744815389645,0.5797904,84616.0,84606.0,0.29359256]
[1744815389844,0.5797904,84616.0,84615.0,0.19679535]
[1744815390047,0.5797904,84616.0,84606.0,0.29359256]
[1744815390048,0.1182029,84607.0,84606.0,0.29359256]
[1744815390246,0.4790029,84607.0,84606.0,0.29359256]
[1744815390755,0.1182071,84604.0,84603.0,0.0987]
[1744815391052,0.1182113,84601.0,84600.0,0.1]
[1744815392449,0.13002312,84601.0,84600.0,0.1]
[1744815393046,0.01181182,84601.0,84596.0,0.0507]
[1744815393348,0.1182267,84590.0,84589.0,0.00508337]
[1744815394761,0.12697036,84590.0,84589.0,0.00508337]
[1744815395061,0.0591282,84569.0,84561.0,0.0504]
[1744815395250,0.1182602,84567.0,84566.0,0.1773875]
[1744815395451,0.1182602,84567.0,84566.0,0.1973875]
[1744815395753,0.1182602,84567.0,84566.0,0.0791301]
[1744815396461,0.1182602,84567.0,84566.0,0.072]
[1744815396661,0.1182602,84567.0,84566.0,0.1702602]
[1744815396858,0.1182602,84567.0,84566.0,0.052]
[1744815397164,0.1192602,84567.0,84566.0,0.056]
[1744815397556,0.1665602,84567.0,84566.0,0.004]
[1744815398257,0.1182812,84551.0,84550.0,0.107241]
[1744815398457,0.1182812,84551.0,84550.0,0.1601]
[1744815399167,0.1182812,84551.0,84550.0,0.2783826]
[1744815399463,0.1182812,84551.0,84550.0,0.112]
[1744815399955,0.1192812,84551.0,84550.0,0.06]
[1744815400161,0.2164812,84551.0,84550.0,0.001]
[1744815400462,0.1182882,84546.0,84545.0,0.0488]
[1744815400760,0.4790882,84546.0,84545.0,0.0488]
[1744815401560,0.4791682,84546.0,84545.0,0.0488]
[1744815401760,0.1183682,84546.0,84545.0,0.7098896]
[1744815401961,0.1182882,84546.0,84545.0,0.7098896]
[1744815402150,0.1183682,84546.0,84545.0,0.5916]
[1744815402349,0.1183682,84546.0,84545.0,0.4116]
[1744815402749,0.1193682,84546.0,84545.0,0.5298896]
[1744815404062,0.4801682,84546.0,84545.0,0.0508]
[1744815404771,0.5322682,84546.0,84545.0,0.0508]
[1744815405459,0.5322682,84546.0,84545.0,0.1017]
[1744815405858,0.5322682,84546.0,84545.0,0.2199896]
[1744815406054,0.1193682,84546.0,84545.0,0.2199896]
[1744815406258,0.1193682,84546.0,84545.0,0.3199896]
[1744815406560,0.1192882,84546.0,84545.0,0.2199896]
[1744815406755,0.1193682,84546.0,84545.0,0.2199896]
[1744815407157,0.1193682,84546.0,84545.0,0.1017]
[1744815407358,0.4801682,84546.0,84545.0,0.1017]
[1744815408057,0.4801682,84546.0,84545.0,0.0529]
[1744815408253,0.1183274,84519.0,84518.0,0.1774838]
[1744815408554,0.1183274,84519.0,84518.0,0.16]
[1744815409060,0.1183274,84519.0,84518.0,0.2783274]
[1744815409562,0.1183274,84519.0,84518.0,0.3768274]
[1744815409768,0.1193274,84519.0,84518.0,0.2168274]
[1744815410069,0.1193274,84519.0,84518.0,0.0985]
[1744815410552,0.1193274,84519.0,84518.0,0.2168274]
[1744815410757,0.1193274,84519.0,84518.0,0.0985]
[1744815410959,0.1194074,84519.0,84518.0,0.0995]
[1744815411867,0.1704074,84519.0,84518.0,0.0995]
[1744815412258,0.1694074,84519.0,84518.0,0.0995]
[1744815412461,0.1704074,84519.0,84518.0,0.0995]
[1744815413061,0.1194074,84519.0,84518.0,0.0985]
[1744815413257,0.1194074,84519.0,84518.0,0.2468274]
[1744815413258,0.00108,84519.0,84518.0,0.2468274]
[1744815413564,0.0591582,84526.0,84525.0,0.1183176]
[1744815413770,0.0591582,84526.0,84525.0,0.5691176]
[1744815414167,0.00010801,84528.0,84525.0,0.5691176]
[1744815414168,0.00010801,84528.0,84527.0,0.1183148]
[1744815414368,0.1183065,84533.0,84532.0,0.1774583]
[1744815414570,0.0591483,84540.0,84539.0,0.118298]
[1744815414774,0.059146,84545.0,84544.0,0.0591449]
[1744815415073,0.059146,84545.0,84544.0,0.2191449]
[1744815415369,8e-05,84545.0,84544.0,0.2191449]
[1744815415559,0.059144,84547.0,84544.0,0.16]
[1744815415759,0.118291,84544.0,84543.0,0.0517]
[1744815416266,0.118291,84544.0,84543.0,0.3199924]
[1744815417057,0.1193703,84545.0,84544.0,0.118291]
[1744815417268,0.1193703,84545.0,84544.0,0.288291]
[1744815417461,0.1192903,84545.0,84544.0,0.288291]
[1744815417663,0.1193703,84545.0,84544.0,0.288291]
[1744815418563,0.1183703,84545.0,84544.0,0.288291]
[1744815419366,0.1193703,84545.0,84544.0,0.289291]
[1744815419762,0.1203703,84545.0,84544.0,0.289291]
[1744815420462,0.00208,84545.0,84544.0,0.289291]
[1744815420661,0.1203696,84545.0,84544.0,0.289291]
[1744815421269,0.00208,84545.0,84544.0,0.289291]
[1744815421471,0.002,84545.0,84544.0,0.289291]
[1744815421972,0.3608,84575.0,84560.0,0.0591336]
[1744815422170,0.3608,84575.0,84565.0,0.1182616]
[1744815422171,0.12345704,84566.0,84565.0,0.1182616]
[1744815422468,0.0518,84574.0,84573.0,0.1182505]
[1744815422673,0.1182482,84575.0,84574.0,0.1182477]
[1744815422872,0.1182482,84575.0,84574.0,0.2882477]
[1744815423168,0.1183282,84575.0,84574.0,0.17]
[1744815423365,0.1701282,84575.0,84574.0,0.2882491]
[1744815423559,0.2217282,84575.0,84574.0,0.2882491]
[1744815423772,0.2216482,84575.0,84574.0,0.2882491]
[1744815423967,0.2217282,84575.0,84574.0,0.2882491]
[1744815424673,0.2227282,84575.0,84574.0,0.2882491]
[1744815424873,0.1193282,84575.0,84574.0,0.2882491]
[1744815425072,0.1193282,84575.0,84574.0,0.2892491]
[1744815425469,0.00108,84575.0,84574.0,0.2892491]
[1744815425960,0.1192477,84575.0,84574.0,0.2892491]
[1744815426161,0.1193277,84575.0,84574.0,0.2892491]
[1744815426371,0.00108,84575.0,84574.0,0.2882491]
[1744815426764,0.00108,84575.0,84574.0,0.29729587]
[1744815426965,0.1192477,84575.0,84574.0,0.34639587]
[1744815427260,0.1193277,84575.0,84574.0,0.3383491]
[1744815427774,0.1193277,84575.0,84574.0,0.171]
[1744815428367,0.1671277,84575.0,84574.0,0.171]
[1744815434171,0.00108,84575.0,84574.0,0.2892491]
[1744815434363,0.0481,84582.0,84581.0,0.1182393]
[1744815434676,0.4092,84591.0,84581.0,0.1182393]
[1744815434677,0.11841458,84583.0,84582.0,0.1182379]
[1744815434980,0.11841458,84583.0,84582.0,0.3637379]
[1744815436378,0.00317738,84583.0,84582.0,0.3647379]
[1744815436582,0.01211407,84599.0,84591.0,0.1182253]
[1744815436770,0.01211407,84599.0,84593.0,0.1182197]
[1744815436771,0.14887402,84597.0,84593.0,0.1182197]
[1744815437074,0.0591112,84594.0,84593.0,0.17]
[1744815437470,0.4199112,84594.0,84593.0,0.17]
[1744815438272,0.4199112,84594.0,84593.0,0.2882225]
[1744815438472,0.4249112,84594.0,84593.0,0.2892225]
[1744815438672,0.4249112,84594.0,84593.0,0.171]
[1744815439069,0.4249112,84594.0,84593.0,0.2892225]
[1744815439672,0.4289112,84594.0,84593.0,0.2892225]
[1744815439873,0.4289112,84594.0,84593.0,0.171]
[1744815440068,0.4289112,84594.0,84593.0,0.2892225]
[1744815440269,0.0681112,84594.0,84593.0,0.2892225]
[1744815440673,0.4289112,84594.0,84593.0,0.2892225]
[1744815441472,0.4289112,84594.0,84593.0,0.171]
[1744815441682,0.4289112,84594.0,84593.0,0.2892225]
[1744815442582,0.0681112,84594.0,84593.0,0.2892225]
[1744815442971,0.4289112,84594.0,84593.0,0.2892225]
[1744815443375,0.4289112,84594.0,84593.0,0.3878225]
[1744815443578,0.0681112,84594.0,84593.0,0.3878225]
[1744815443881,0.1151912,84594.0,84593.0,0.3878225]
[1744815444080,0.1151112,84594.0,84593.0,0.3878225]
[1744815444279,0.1151912,84594.0,84593.0,0.3878225]
[1744815444986,0.0591098,84595.0,84593.0,0.3878225]
[1744815444987,0.3608,84601.0,84600.0,0.1182127]
[1744815445187,0.3608,84601.0,84600.0,0.2682127]
[1744815445377,0.00017738,84602.0,84601.0,0.1182113]
[1744815445573,0.0469,84611.0,84603.0,0.1182085]
[1744815445785,0.0469,84611.0,84603.0,0.2682085]
[1744815445976,0.1182071,84604.0,84603.0,0.3170085]
[1744815446180,0.1182871,84604.0,84603.0,0.3170085]
[1744815446381,0.1182871,84604.0,84603.0,0.3631085]
[1744815446784,0.1262871,84604.0,84603.0,0.3641085]
[1744815446992,0.1302871,84604.0,84603.0,0.3641085]
[1744815447181,0.2235871,84604.0,84603.0,0.3641085]
[1744815448083,0.1302871,84604.0,84603.0,0.3641085]
[1744815448388,0.1712871,84604.0,84603.0,0.3631085]
[1744815448580,0.2188871,84604.0,84603.0,0.3631085]
[1744815448981,0.5796871,84604.0,84603.0,0.3631085]
[1744815450090,0.5796871,84604.0,84603.0,0.15]
[1744815450686,0.5796871,84604.0,84603.0,0.2682085]
[1744815450995,0.05308,84604.0,84603.0,0.27687919]
[1744815451191,0.1712871,84604.0,84603.0,0.37187919]
[1744815452086,0.2191871,84604.0,84603.0,0.37187919]
[1744815452590,0.05308,84604.0,84603.0,0.37187919]
[1744815452790,0.00608,84604.0,84603.0,0.37187919]
[1744815452994,0.006,84604.0,84603.0,0.41977919]
[1744815453190,0.00608,84604.0,84603.0,0.41977919]
[1744815453385,0.006,84604.0,84603.0,0.41977919]
[1744815453785,0.00608,84604.0,84603.0,0.37187919]
[1744815453993,0.4850871,84604.0,84603.0,0.15]
[1744815454484,0.0591147,84590.0,84584.0,0.0591168]
[1744815454691,0.0591154,84588.0,84587.0,0.1640309]
[1744815454892,0.1182308,84588.0,84587.0,0.3340309]
[1744815455089,0.2133308,84588.0,84587.0,0.3340309]
[1744815455597,0.2133308,84588.0,84587.0,0.3800309]
[1744815456085,0.2133308,84588.0,84587.0,0.3820309]
[1744815456590,0.2133308,84588.0,84587.0,0.172]
[1744815457487,0.2133308,84588.0,84587.0,0.002]
[1744815457692,0.2133308,84588.0,84587.0,0.112]
[1744815458088,0.2133308,84588.0,84587.0,0.11]
[1744815458284,0.2133308,84588.0,84587.0,0.111]
[1744815458489,0.2143308,84588.0,84587.0,0.001]
[1744815458692,0.1182323,84586.0,84585.0,0.00017738]